bitfinex/quotes_ETHUSD_20220212
["timestamp","ask_amount","ask_price","bid_price","bid_amount"]
[1644635535535,1.44560454,2943.8,2943.5,0.489]
[1644635535983,0.00823226,2943.7,2943.5,0.489]
[1644635536184,1.44560454,2943.6,2943.5,0.489]
[1644635536384,0.00823226,2943.7,2943.4,0.08818312]
[1644635536585,0.00823226,2943.7,2943.5,0.489]
[1644635536984,0.1698,2944.2,2943.5,0.489]
[1644635537188,0.00823226,2943.7,2943.6,0.98414558]
[1644635537388,0.00823226,2943.7,2943.6,0.489]
[1644635537798,0.00823226,2943.7,2942.9,1.3983]
[1644635537799,1.45378341,2943.7,2942.9,1.2285]
[1644635537990,4.15085953,2944.3,2943.0,0.489]
[1644635537991,1.61535115,2943.6,2943.0,0.489]
[1644635538188,0.64763229,2944.1,2943.0,0.489]
[1644635538189,1.44555115,2943.5,2943.0,0.489]
[1644635538391,0.00823254,2943.4,2943.0,0.489]
[1644635538589,1.44555115,2943.3,2943.0,0.489]
[1644635539191,1.44555115,2943.3,2942.4,1.2214]
[1644635539192,3.77547054,2943.2,2942.4,1.2214]
[1644635539393,1.44555115,2943.1,2942.3,0.50890514]
[1644635539628,3.60699826,2943.0,2942.3,0.50890514]
[1644635539828,0.1698,2943.0,2942.3,0.50890514]
[1644635540028,3.85766754,2943.3,2942.7,0.83681507]
[1644635540029,0.1698,2943.2,2942.7,0.83681507]
[1644635540230,0.1698,2943.2,2942.7,1.32581507]
[1644635540629,0.1698,2943.2,2942.8,0.84964]
[1644635540932,0.00823285,2943.1,2942.9,0.489]
[1644635541830,0.1698,2943.2,2942.9,0.489]
[1644635542031,0.00823281,2943.1,2942.9,0.489]
[1644635542835,0.1698,2943.2,2942.9,0.489]
[1644635543283,0.00823281,2943.1,2942.9,0.489]
[1644635543678,0.00823281,2943.1,2943.0,0.1698]
[1644635543877,0.00823281,2943.1,2943.0,0.6588]
[1644635544077,0.1698,2943.7,2943.0,0.489]
[1644635544279,0.1698,2943.7,2943.2,0.84943]
[1644635544481,0.1698,2943.7,2943.3,0.6588]
[1644635544681,0.1698,2943.7,2943.5,0.94722052]
[1644635544878,0.1698,2943.7,2943.6,0.489]
[1644635545277,1.61529667,2943.7,2943.6,0.489]
[1644635547433,1.61529667,2943.7,2943.6,0.789]
[1644635547635,0.00823222,2943.8,2943.7,0.8492]
[1644635547834,0.01601628,2944.3,2943.8,0.1698]
[1644635548035,1.44527285,2944.2,2943.9,0.489]
[1644635548235,1.44527285,2944.2,2944.1,1.12835221]
[1644635548434,1.44527285,2944.2,2944.1,1.61735221]
[1644635553986,1.44527285,2944.2,2944.1,1.91735221]
[1644635554382,1.44527285,2944.2,2944.1,1.86735221]
[1644635555933,1.44527285,2944.2,2944.1,1.88801683]
[1644635556233,1.44527285,2944.2,2944.1,8.30101683]
[1644635556431,0.0242538,2944.3,2944.2,0.84909]
[1644635556633,0.0242538,2944.3,2944.2,0.489]
[1644635556831,0.0242538,2944.3,2944.2,1.789]
[1644635557436,0.01601628,2944.3,2944.2,1.789]
[1644635557837,1.44761956,2944.3,2944.2,1.789]
[1644635558036,1.44761956,2944.3,2944.2,2.63809]
[1644635558885,1.44761956,2944.3,2944.2,1.63809]
[1644635559088,1.44761956,2944.3,2944.2,1.33809]
[1644635560190,1.44761956,2944.3,2944.2,1.36137423]
[1644635560391,1.44761956,2944.3,2944.2,1.66137423]
[1644635560589,0.01601628,2944.3,2944.2,1.36137423]
[1644635560790,0.01601628,2944.3,2944.2,1.66137423]
[1644635561190,0.01601628,2944.3,2944.2,1.36137423]
[1644635561390,1.44549356,2944.3,2944.2,1.36137423]
[1644635561793,1.44549356,2944.3,2944.2,1.96137423]
[1644635562232,1.44549356,2944.3,2944.2,1.36137423]
[1644635562433,1.44549356,2944.3,2944.2,1.96137423]
[1644635562632,1.44549356,2944.3,2944.2,1.36137423]
[1644635563233,1.44549356,2944.3,2944.2,1.66137423]
[1644635563433,1.44549356,2944.3,2944.2,1.36137423]
[1644635564136,1.44549356,2944.3,2944.2,1.66137423]
[1644635564835,1.44549356,2944.3,2944.2,2.66137423]
[1644635565033,1.44549356,2944.3,2944.2,1.96137423]
[1644635565233,1.44549356,2944.3,2944.2,1.66137423]
[1644635565878,1.44549356,2944.3,2944.2,1.36137423]
[1644635566077,1.44549356,2944.3,2944.2,1.61137423]
[1644635566879,1.44549356,2944.3,2944.2,2.91137423]
[1644635568081,1.44549356,2944.3,2944.2,1.61137423]
[1644635568983,1.44549356,2944.3,2944.2,1.91137423]
[1644635569385,1.44549356,2944.3,2944.2,2.91137423]
[1644635569929,1.44549356,2944.3,2944.2,1.91137423]
[1644635570732,1.44549356,2944.3,2944.2,1.61137423]
[1644635570931,1.44549356,2944.3,2944.2,1.91137423]
[1644635571537,1.44549356,2944.3,2944.2,2.91137423]
[1644635571838,1.44549356,2944.3,2944.2,1.91137423]
[1644635572837,1.44549356,2944.3,2944.2,2.91137423]
[1644635575287,1.44549356,2944.3,2944.2,1.91137423]
[1644635576293,1.44549356,2944.3,2944.2,2.91137423]
[1644635576590,1.44549356,2944.3,2944.2,0.36961851]
[1644635577347,1.42947728,2944.3,2944.2,1.36961851]
[1644635577842,1.42947728,2944.3,2944.2,0.36961851]
[1644635578141,1.42947728,2944.3,2944.2,1.36961851]
[1644635578343,1.42947728,2944.3,2944.2,1.75453851]
[1644635578541,1.42947728,2944.3,2944.2,2.05453851]
[1644635579343,1.42947728,2944.3,2944.2,2.54353851]
[1644635580343,1.42947728,2944.3,2944.2,2.56551776]
[1644635581584,1.42947728,2944.3,2944.2,0.88059776]
[1644635581785,5.17028912,2944.3,2944.2,0.02197925]
[1644635581986,5.8129933,2944.3,2944.2,0.02197925]
[1644635582385,2.24198146,2944.3,2944.2,0.02197925]
[1644635582788,1.42947728,2944.3,2944.2,0.02197925]
[1644635582985,2.07218146,2944.3,2944.2,0.02197925]
[1644635584931,1.42947728,2944.3,2944.2,0.02197925]
[1644635585533,4.93126908,2944.3,2944.2,0.02197925]
[1644635585732,4.93126908,2944.3,2943.6,0.03315698]
[1644635585733,0.1698,2944.2,2943.6,0.03315698]
[1644635585933,0.64357249,2943.9,2943.6,0.03315698]
[1644635586632,2.07304977,2943.9,2943.6,0.03315698]
[1644635586833,1.42947728,2943.8,2943.6,0.03315698]
[1644635587032,1.42947728,2943.7,2943.6,0.03315698]
[1644635592849,1.42947728,2943.7,2943.6,0.10720781]
[1644635593044,1.42947728,2943.7,2943.6,0.10720842]
[1644635593447,1.42947728,2943.7,2943.6,0.00720842]
[1644635594045,1.42947728,2943.7,2943.5,0.84949]
[1644635594246,0.6513216,2943.8,2943.3,0.1698]
[1644635594446,0.64357249,2943.7,2943.3,0.1698]
[1644635594946,0.65132167,2943.7,2943.3,0.1698]
[1644635595245,0.00774918,2943.7,2943.3,0.1698]
[1644635595453,3.41636393,2943.7,2943.3,0.1698]
[1644635595648,0.64357249,2943.6,2943.3,0.1698]
[1644635595879,0.64357249,2943.6,2942.8,0.1698]
[1644635596080,0.64357249,2943.6,2942.7,1.61949]
[1644635596280,4.06402703,2943.5,2942.7,1.61949]
[1644635596480,0.64357249,2943.5,2942.7,1.61949]
[1644635596679,0.64357249,2943.5,2942.7,0.7698]
[1644635596879,0.64357249,2943.5,2942.9,1.00895878]
[1644635597085,2.85,2943.4,2942.7,0.84968]
[1644635597284,0.64357249,2943.5,2942.8,1.15979653]
[1644635597285,0.00774954,2943.2,2942.8,1.15979653]
[1644635598089,4.15219464,2943.5,2942.8,1.45979653]
[1644635598285,4.15219464,2943.5,2942.8,1.75979653]
[1644635598485,0.00774962,2943.1,2942.8,1.15979653]
[1644635599285,3.49454381,2943.4,2942.8,1.15979653]
[1644635599539,0.00774967,2943.1,2942.8,1.15979653]
[1644635600533,3.49454381,2943.4,2942.8,1.45979653]
[1644635600737,0.00774967,2943.1,2942.8,1.45979653]
[1644635600937,0.00774967,2943.1,2942.8,1.10979653]
[1644635601741,3.63102329,2943.4,2942.8,1.10979653]
[1644635602040,0.00774967,2943.1,2942.8,1.40979653]
[1644635602441,0.00774967,2943.1,2942.8,1.10979653]
[1644635603043,0.01332257,2943.4,2942.8,1.10979653]
[1644635603284,0.00774967,2943.1,2942.8,1.10979653]
[1644635603480,0.00774967,2943.1,2942.8,1.70979653]
[1644635603681,0.00774967,2943.1,2942.8,1.10979653]
[1644635604080,0.01332257,2943.4,2942.8,1.10979653]
[1644635604481,0.00774967,2943.1,2942.8,1.10979653]
[1644635605382,0.01332257,2943.4,2942.8,1.10979653]
[1644635605582,0.02206939,2943.1,2942.8,1.10979653]
[1644635606582,0.01431972,2943.1,2942.8,1.10979653]
[1644635606782,0.02206939,2943.1,2942.8,1.10979653]
[1644635607836,0.01431972,2943.1,2942.8,1.10979653]
[1644635608039,0.02206939,2943.1,2942.8,1.10979653]
[1644635608237,0.02206939,2943.1,2942.8,1.70979653]
[1644635608439,0.02206939,2943.1,2942.8,1.40979653]
[1644635608636,0.02206939,2943.1,2942.8,1.10979653]
[1644635609036,0.01431972,2943.1,2942.8,1.40979653]
[1644635609236,0.02206939,2943.1,2942.8,1.40979653]
[1644635609638,0.02206939,2943.1,2942.8,1.10979653]
[1644635609837,0.02206939,2943.1,2942.8,1.40979653]
[1644635610240,0.01513763,2943.0,2942.8,1.40979653]
[1644635610639,0.01513763,2943.0,2942.8,1.10979653]
[1644635611288,0.01513763,2943.0,2942.6,1.8921]
[1644635611490,0.01513763,2943.0,2942.7,0.3]
[1644635611695,0.01513763,2943.0,2942.6,1.8333]
[1644635611696,0.02288734,2943.0,2942.6,1.8333]
[1644635611995,0.02288734,2943.0,2942.6,0.3]
[1644635612194,0.02288734,2943.0,2942.1,0.6588]
[1644635612394,0.02288734,2943.0,2942.5,0.85781281]
[1644635612593,0.01513763,2943.0,2942.5,0.85781281]
[1644635612793,0.01513763,2943.0,2942.5,1.45781281]
[1644635612794,0.00774997,2942.7,2942.5,1.45781281]
[1644635613394,1.30192232,2942.6,2942.5,0.85781281]
[1644635613597,0.00774997,2942.7,2942.5,0.85781281]
[1644635613796,0.86506763,2943.0,2942.5,0.85781281]
[1644635613997,0.00774997,2942.7,2942.5,0.85781281]
[1644635614198,1.30145377,2942.6,2942.5,0.85781281]
[1644635616538,1.30145377,2942.6,2942.5,0.80781281]
[1644635617141,1.30145377,2942.6,2942.2,0.11518442]
[1644635617340,0.02446578,2942.9,2942.2,0.11518442]
[1644635617341,1.30145377,2942.5,2942.2,0.11518442]
[1644635617540,1.30145377,2942.4,2942.2,0.11518442]
[1644635617740,0.00774997,2942.7,2942.3,0.97311761]
[1644635617942,1.25998593,2942.6,2942.3,0.97311761]
[1644635618785,1.25998593,2942.5,2942.3,0.97311761]
[1644635619991,1.15998593,2942.4,2942.3,0.97311761]
[1644635620191,0.00775009,2942.5,2942.3,0.97311761]
[1644635620390,0.00775009,2942.5,2942.0,0.84994]
[1644635620593,0.00775009,2942.5,2941.8,0.00357711]
[1644635620594,0.65132258,2942.5,2941.8,0.00357711]
[1644635620793,4.87993581,2942.4,2941.6,0.00357711]
[1644635620993,4.87993581,2942.4,2941.4,0.00357711]
[1644635621392,0.00775027,2942.3,2941.4,0.00357711]
[1644635621598,0.85791517,2942.3,2941.4,0.00357711]
[1644635621796,3.49653693,2942.2,2941.6,1.14520195]
[1644635622039,3.49653693,2942.2,2941.7,0.00357711]
[1644635622236,3.49653693,2942.2,2941.4,0.00357711]
[1644635622437,0.00775046,2942.0,2941.4,0.00357711]
[1644635622636,0.00775046,2942.0,2941.2,1.70017]
[1644635622837,0.00775046,2942.0,2941.3,0.00352555]
[1644635623036,0.00775046,2942.0,2941.6,1.1075083]
[1644635623238,0.00775046,2942.0,2941.6,1.11103385]
[1644635623536,0.00775053,2941.9,2941.6,1.11103385]
[1644635623756,0.00775053,2941.9,2941.7,0.00352555]
[1644635624543,0.8502071,2942.1,2941.7,0.00352555]
[1644635624741,3.38468992,2942.0,2941.7,0.00352555]
[1644635624941,0.8502071,2942.1,2941.7,0.00352555]
[1644635625241,1.0200071,2942.1,2941.7,0.00352555]
[1644635625441,1.03307888,2942.1,2941.7,0.00352555]
[1644635625642,0.18287178,2942.1,2941.7,0.00352555]
[1644635626286,0.01307178,2942.1,2941.7,0.00352555]
[1644635626789,0.86330638,2942.1,2941.1,0.00572484]
[1644635626987,3.54932885,2942.0,2941.1,0.00352555]
[1644635627189,0.00775839,2942.0,2941.1,0.01083009]
[1644635627790,0.00775839,2942.0,2941.7,0.88365783]
[1644635628190,0.18287178,2942.1,2941.7,0.88365783]
[1644635628491,0.00731286,2942.0,2941.7,0.88718338]
[1644635628691,0.00731286,2942.0,2941.7,0.88365783]
[1644635629295,0.01307178,2942.1,2941.7,0.88365783]
[1644635629548,0.00748158,2942.0,2941.7,0.88718338]
[1644635629739,0.00748158,2942.0,2941.7,0.88365783]
[1644635630141,3.44158214,2942.0,2941.7,0.88365783]
[1644635630342,0.0223987,2942.0,2941.7,0.88365783]
[1644635630542,0.01491712,2942.0,2941.7,0.88365783]
[1644635630941,0.0223987,2942.0,2941.7,0.88365783]
[1644635631742,0.51230821,2942.0,2941.7,0.88365783]
[1644635631946,0.51230821,2942.0,2941.2,0.00352555]
[1644635632149,5.0,2941.8,2941.2,0.00352555]
[1644635632450,1.1698,2941.7,2941.1,0.00748386]
[1644635632646,4.2846,2941.7,2941.1,0.00748386]
[1644635632846,3.1148,2941.7,2941.1,0.00748386]
[1644635633046,3.1148,2941.7,2940.8,0.00352555]
[1644635633284,3.1148,2941.7,2941.1,0.00715982]
[1644635634089,0.8503329,2941.6,2941.1,0.00715982]
[1644635634291,0.1698,2941.5,2940.8,0.99001359]
[1644635634494,0.1698,2941.5,2941.1,0.00715982]
[1644635634892,3.1148,2941.7,2941.1,0.00715982]
[1644635634893,0.1698,2941.6,2941.1,0.00715982]
[1644635635291,0.1698,2941.6,2940.8,1.01865565]
[1644635635491,3.1148,2941.7,2940.8,0.99001359]
[1644635635691,3.1148,2941.7,2941.1,0.00715973]
[1644635636293,0.8503302,2941.6,2941.1,0.00715973]
[1644635636494,0.8503302,2941.6,2940.8,1.8689458]
[1644635636694,0.8503302,2941.6,2940.8,1.84030359]
[1644635636893,0.8503302,2941.6,2941.1,0.00719236]
[1644635637143,0.8503302,2941.6,2940.8,0.33306718]
[1644635637144,4.2003302,2941.6,2940.8,0.33306718]
[1644635637341,4.2003302,2941.6,2940.8,0.63306718]
[1644635637540,0.8503302,2941.6,2941.0,1.0679915]
[1644635637940,4.28753677,2941.6,2941.0,1.0679915]
[1644635638141,4.28753677,2941.6,2940.7,0.739]
[1644635638142,3.5,2941.5,2940.7,0.739]
[1644635638342,3.5,2941.5,2939.9,8.31259571]
[1644635638343,5.0,2941.3,2939.9,0.68252571]
[1644635638542,5.0,2941.3,2939.5,1.2397]
[1644635638543,3.67,2941.2,2939.5,1.2397]
[1644635638743,4.67,2941.2,2940.0,0.04092648]
[1644635638941,1.8711179,2941.2,2940.0,0.04092648]
[1644635639141,0.17,2941.2,2940.4,1.02922568]
[1644635639343,0.8505555,2941.1,2940.4,1.02922568]
[1644635639542,1.11746053,2940.9,2940.4,1.02922568]
[1644635639748,1.11746053,2940.9,2940.4,0.97922568]
[1644635640141,1.11746053,2940.9,2940.0,1.21202648]
[1644635640343,1.26223606,2940.8,2940.5,0.00824945]
[1644635640543,0.17,2941.0,2940.5,0.00824945]
[1644635640788,1.26223193,2940.9,2940.5,0.00824945]
[1644635641189,0.92840873,2940.9,2940.5,0.00824945]
[1644635641388,0.92840873,2940.9,2940.2,0.95206235]
[1644635641589,1.77902873,2940.9,2940.6,0.00824941]
[1644635641790,1.26077698,2940.8,2940.6,0.00824941]
[1644635641988,0.92840873,2940.9,2940.6,0.00824941]
[1644635642592,0.92840873,2940.9,2940.2,0.95206235]
[1644635642892,0.92840873,2940.9,2940.6,0.00824936]
[1644635643193,1.25939057,2940.8,2940.6,0.00824936]
[1644635643793,1.25939057,2940.8,2940.2,0.95206235]
[1644635643991,1.25939057,2940.8,2940.6,0.00268365]
[1644635644638,1.70126,2940.9,2940.6,0.00268365]
[1644635644839,3.87341105,2941.0,2940.6,0.00268365]
[1644635645043,3.87341105,2941.0,2940.2,0.95206235]
[1644635645238,5.06583586,2941.0,2940.2,0.95206235]
[1644635645641,0.02221183,2940.8,2940.2,0.95206235]
[1644635645837,0.87277093,2940.8,2940.2,0.95206235]
[1644635646239,3.46336416,2940.7,2940.2,0.95206235]
[1644635646441,0.87277093,2940.8,2940.2,0.95206235]
[1644635646638,1.04277093,2940.8,2940.2,0.95206235]
[1644635647647,0.19221183,2940.8,2940.2,0.95206235]
[1644635648046,0.02221183,2940.8,2940.2,0.95206235]
[1644635648889,0.17,2941.0,2940.1,0.04035806]
[1644635648890,0.09221183,2941.0,2940.7,1.10446392]
[1644635649992,0.09221183,2941.0,2940.7,1.11271911]
[1644635650390,8.55,2940.8,2939.5,0.19612961]
[1644635650595,8.55,2940.8,2938.2,2.66533512]
[1644635650596,3.55,2939.5,2938.2,2.66533512]
[1644635650791,3.55,2939.5,2937.5,1.56878641]
[1644635650792,0.01278224,2938.9,2937.5,0.65554629]
[1644635650993,3.6701,2939.4,2937.8,0.85102]
[1644635650994,3.7521,2939.4,2937.8,0.85102]
[1644635651191,3.7521,2939.4,2937.4,0.05005]
[1644635651192,4.7521,2939.4,2937.4,0.05005]
[1644635651392,3.7521,2939.4,2938.7,0.72991028]
[1644635651592,1.1846,2939.7,2938.7,0.72991028]
[1644635651795,0.1701,2939.8,2938.7,0.72991028]
[1644635652042,0.85095,2939.4,2938.7,0.72991028]
[1644635652238,3.5,2939.3,2938.1,0.25]
[1644635652442,0.489,2939.2,2938.1,0.25]
[1644635652638,0.1701,2939.1,2938.2,0.00344363]
[1644635652841,1.70247,2939.0,2937.4,0.30005]
[1644635653038,0.1701,2938.9,2937.4,0.30349363]
[1644635653240,0.8512,2938.6,2937.4,0.30349363]
[1644635653638,0.1701,2938.5,2937.4,0.30349363]
[1644635653839,0.95363313,2938.7,2937.9,0.00829164]
[1644635653840,0.1701,2938.6,2937.9,0.00829164]
[1644635654045,0.8512899,2938.5,2937.9,0.00829164]
[1644635654241,0.1701,2938.7,2937.9,0.00829164]
[1644635654444,4.403,2939.2,2937.9,0.00829164]
[1644635654643,4.403,2939.2,2938.3,0.85086]
[1644635654644,3.2639,2939.2,2938.3,0.85086]
[1644635654842,4.1454,2939.3,2938.0,0.489]
[1644635654843,3.9753,2939.3,2938.0,0.489]
[1644635655043,0.1701,2939.2,2938.5,1.17485088]
[1644635655242,0.1701,2939.2,2938.6,0.00344363]
[1644635655446,2.7229671,2939.4,2938.6,0.00344363]
[1644635655643,4.650599,2939.5,2938.4,0.00264647]
[1644635655644,1.0211451,2939.1,2938.4,0.00264647]
[1644635655887,0.8510451,2939.1,2938.9,0.03804912]
[1644635656087,0.1701,2939.0,2938.9,0.03804912]
[1644635657291,0.04771116,2938.3,2938.2,0.92700556]
[1644635657493,0.04771116,2938.3,2937.8,0.007]
[1644635657690,0.89895116,2938.3,2937.8,0.007]
[1644635657890,1.06905116,2938.3,2937.8,0.007]
[1644635658095,5.0,2937.9,2936.1,1.1572]
[1644635658293,3.55,2938.1,2935.6,7.46]
[1644635658294,3.4074802,2937.4,2935.6,7.46]
[1644635658492,1.04405976,2936.8,2935.9,0.83646619]
[1644635658692,0.85186,2936.6,2935.9,0.83646619]
[1644635658891,2.5555792,2936.7,2935.4,0.25]
[1644635658892,1.7037092,2936.7,2935.4,0.25]
[1644635659295,0.851744,2936.5,2935.4,0.25]
[1644635659744,1.7033291,2937.1,2936.2,0.89675645]
[1644635659943,1.7033291,2937.1,2936.0,0.00256127]
[1644635660345,0.8516898,2936.8,2936.0,0.00256127]
[1644635660745,4.5413518,2936.7,2935.4,0.25]
[1644635660945,1.02193,2936.7,2936.0,1.15917586]
[1644635661142,1.7037751,2936.6,2936.3,0.00256101]
[1644635661345,0.8518876,2936.5,2936.3,0.00256101]
[1644635661942,1.7038076,2936.5,2935.4,0.25]
[1644635662147,5.2538076,2936.5,2935.9,0.86443349]
[1644635662346,5.2538076,2936.5,2936.3,0.00773508]
[1644635662347,0.8518876,2936.5,2936.3,0.00773508]
[1644635663147,0.8518876,2936.5,2935.9,0.86443349]
[1644635663393,0.8518876,2936.5,2936.3,0.00773508]
[1644635663791,3.69125,2936.4,2936.3,0.00773508]
[1644635663991,0.8518876,2936.5,2936.3,0.00773508]
[1644635663992,1.0219876,2936.5,2936.3,0.00773508]
[1644635664391,5.49220277,2936.5,2935.9,0.86443349]
[1644635664591,5.49220277,2936.5,2935.7,0.36433964]
[1644635664592,0.8519781,2936.3,2935.7,0.36433964]
[1644635664791,0.1701,2936.2,2935.8,0.03094495]
[1644635664991,0.8519781,2936.3,2935.8,0.03094495]
[1644635665591,0.8519781,2936.3,2935.8,1.0355679]
[1644635665994,0.8519781,2936.3,2935.9,0.00715904]
[1644635666793,0.8519781,2936.3,2935.7,0.36433964]
[1644635667070,3.62359105,2936.2,2936.0,0.00715892]
[1644635667272,0.85202,2936.1,2936.0,0.00715892]
[1644635667473,0.8519781,2936.3,2936.0,0.00715892]
[1644635668074,0.8519781,2936.3,2935.7,0.36433964]
[1644635668075,4.3901714,2936.3,2935.7,0.36433964]
[1644635668274,0.8519781,2936.3,2936.0,0.00215517]
[1644635669275,0.01340481,2936.4,2935.8,0.489]
[1644635669574,0.01340481,2936.4,2936.0,0.00218709]
[1644635670378,0.01340481,2936.4,2935.8,0.489]
[1644635670577,0.01188094,2936.2,2935.8,0.489]
[1644635670786,0.01188094,2936.2,2936.1,0.00726508]
[1644635671593,0.01188094,2936.2,2935.7,1.508606]
[1644635671991,0.01188094,2936.2,2936.0,0.0072652]
[1644635672394,2.25,2936.1,2935.7,1.4158712]
[1644635672595,2.25,2936.1,2935.7,1.4193137]
[1644635672795,3.54138907,2936.0,2935.7,0.27504734]
[1644635672994,0.1703,2936.1,2935.7,0.27160484]
[1644635673193,0.1703,2936.1,2935.7,0.27504734]
[1644635673697,1.6539881,2936.0,2935.7,0.27504734]
[1644635673894,1.6539881,2936.0,2935.7,0.27160484]
[1644635674736,5.24500251,2936.0,2935.7,0.27160484]
[1644635674936,1.6539881,2936.0,2935.7,0.27160484]
[1644635676839,1.6539881,2936.0,2935.7,0.279921]
[1644635677042,0.02468062,2936.1,2935.7,0.279921]
[1644635677249,0.02468062,2936.1,2935.5,0.0034425]
[1644635677250,0.02468062,2936.1,2935.5,0.13092482]
[1644635678044,0.02468062,2936.1,2935.8,0.89010718]
[1644635679392,0.87655522,2936.1,2935.8,0.89010718]
[1644635679591,0.02468062,2936.1,2935.8,0.89010718]
[1644635680391,0.02179052,2935.9,2935.8,0.89010718]
[1644635685786,0.00831458,2936.3,2935.8,0.89010718]
[1644635685989,1.04389082,2936.4,2935.8,0.89010718]
[1644635685990,0.87359082,2936.4,2935.8,0.89010718]
[1644635686189,1.72544082,2936.4,2935.8,0.89010718]
[1644635686388,0.00831458,2936.3,2935.8,0.89010718]
[1644635687191,1.04369082,2936.4,2935.8,0.89010718]
[1644635687393,0.87359082,2936.4,2935.8,0.89010718]
[1644635687591,0.00831496,2936.3,2935.8,0.89010718]
[1644635688391,0.02179052,2936.4,2935.8,0.89010718]
[1644635688392,0.19189052,2936.4,2935.8,0.89010718]
[1644635688595,0.00831496,2936.3,2935.8,0.89010718]
[1644635688794,0.00831496,2936.3,2936.1,0.85494361]
[1644635689193,0.00831496,2936.3,2935.7,0.85172]
[1644635689641,0.02179052,2936.4,2935.7,0.85172]
[1644635689842,0.00831487,2936.3,2935.7,0.85172]
[1644635690242,0.00831487,2936.3,2935.9,1.03839529]
[1644635690441,6.34081487,2936.3,2935.9,1.03839529]
[1644635690641,6.34081487,2936.3,2935.6,0.00831687]
[1644635690841,7.1843012,2936.3,2935.2,3.17078]
[1644635691043,3.55,2936.2,2935.3,1.66182707]
[1644635691242,7.19261626,2936.3,2935.3,1.66182707]
[1644635691643,1.06800084,2936.1,2935.2,3.17078]
[1644635691843,1.06800084,2936.1,2935.1,1.10445937]
[1644635691844,4.59412048,2936.0,2935.1,1.10445937]
[1644635692047,4.59412048,2936.0,2934.7,0.489]
[1644635692248,4.59412048,2936.0,2934.6,0.25]
[1644635692249,1.1703,2935.9,2934.6,0.25]
[1644635692449,1.70436,2935.7,2934.6,0.25]
[1644635692647,0.1703,2935.6,2934.7,0.00335731]
[1644635692848,0.8521532,2935.4,2934.7,0.00335731]
[1644635693046,0.8521532,2935.4,2934.7,1.00533473]
[1644635693047,0.1703,2935.3,2934.7,1.00533473]
[1644635693301,0.8521532,2935.4,2934.7,0.95533473]
[1644635693493,0.8521532,2935.4,2934.9,0.00246874]
[1644635693693,3.2939,2936.2,2934.9,0.00246874]
[1644635693893,6.3325,2936.3,2935.0,0.489]
[1644635693894,0.1703,2936.1,2935.0,0.489]
[1644635694091,0.1703,2936.2,2935.0,0.489]
[1644635694291,0.1703,2936.2,2935.4,1.19418578]
[1644635694492,1.0221329,2936.2,2935.4,1.19418578]
[1644635694695,1.0221329,2936.2,2935.5,0.00246828]
[1644635695393,1.0221329,2936.2,2935.2,0.44146828]
[1644635695394,3.55,2936.1,2935.2,0.44146828]
[1644635695593,3.55,2936.1,2934.5,0.25]
[1644635695594,1.61970519,2936.0,2934.5,1.95396]
[1644635695795,1.44947249,2935.9,2934.5,1.95396]
[1644635695996,0.1703,2935.8,2934.5,2.25396]
[1644635696193,0.8519713,2935.9,2934.5,2.55396]
[1644635696393,0.8519713,2935.9,2934.6,0.97332016]
[1644635696593,3.57665794,2935.8,2934.6,0.97332016]
[1644635696794,0.8519713,2935.9,2934.7,0.852]
[1644635697042,1.7040013,2935.9,2934.7,0.802]
[1644635697250,1.7040013,2935.9,2935.1,0.00231468]
[1644635697251,0.8519713,2935.9,2935.1,0.00231468]
[1644635697447,0.8519713,2935.9,2935.8,1.05227416]
[1644635697650,1.54598519,2935.4,2935.3,0.489]
[1644635697849,1.54598519,2935.4,2935.1,1.70573988]
[1644635698049,1.54598519,2935.4,2935.3,0.789]
[1644635698550,1.54598519,2935.4,2935.3,1.92544376]
[1644635698750,0.02186078,2936.1,2935.5,0.85158]
[1644635698949,0.02186078,2936.1,2935.6,7.4535508]
[1644635699150,0.02186078,2936.1,2935.7,1.15142]
[1644635699350,6.078e-05,2936.1,2935.7,2.15142]
[1644635699551,0.00800611,2936.0,2935.7,2.15142]
[1644635699752,0.00800611,2936.0,2935.8,0.90052344]
[1644635699951,0.00800611,2936.0,2935.8,1.38952344]
[1644635700151,0.00800611,2936.0,2935.8,1.68952344]
[1644635700353,0.00800611,2936.0,2935.8,5.24388084]
[1644635700552,6.3325,2936.3,2935.9,0.8514]
[1644635700802,0.0079867,2936.0,2935.9,0.8514]
[1644635700996,6.3325,2936.3,2935.9,1.3404]
[1644635701196,6.3325,2936.3,2936.2,4.99184523]
[1644635701197,4.6298,2936.3,2936.2,4.99184523]
[1644635701399,0.64357249,2937.4,2936.3,3.55]
[1644635701599,0.64357249,2937.4,2936.8,0.85132]
[1644635701797,1.44880104,2937.4,2936.9,0.489]
[1644635701996,1.44880104,2937.3,2936.9,0.489]
[1644635702200,0.85809666,2937.8,2936.9,0.489]
[1644635702201,1.44880104,2937.2,2936.9,0.489]
[1644635702404,1.29060857,2938.1,2937.0,0.83664534]
[1644635702405,1.44880104,2937.1,2937.0,0.83664534]
[1644635702600,1.44880104,2937.1,2937.0,0.85122]
[1644635703001,1.44880104,2937.6,2937.0,0.85122]
[1644635703204,1.44880104,2937.5,2936.9,2.19144]
[1644635703403,0.001,2937.8,2936.9,2.19144]
[1644635703603,0.85809666,2937.9,2936.9,2.49144]
[1644635703604,0.85909666,2937.9,2936.9,2.49144]
[1644635703906,0.1711,2937.9,2937.3,0.92045924]
[1644635704302,0.1711,2937.9,2937.3,1.40945924]
[1644635704303,0.00830827,2937.5,2937.3,1.40945924]
[1644635704745,0.00830827,2937.5,2937.3,2.00945924]
[1644635704948,0.00830827,2937.5,2937.3,3.00945924]
[1644635705143,0.00830827,2937.5,2937.4,0.85123]
[1644635705344,0.04771116,2938.3,2937.4,2.34023]
[1644635705544,0.04771116,2938.3,2937.5,4.99184523]
[1644635705747,0.04771116,2938.3,2937.6,2.19077]
[1644635705945,0.04771116,2938.3,2937.6,1.70177]
[1644635706144,0.04771116,2938.3,2937.3,0.87045924]
[1644635706345,0.04771116,2938.3,2937.8,0.84019145]
[1644635706543,0.21781116,2938.3,2937.6,0.489]
[1644635706744,0.00830791,2937.9,2937.6,0.489]
[1644635707348,0.00830791,2937.9,2937.7,0.85112]
[1644635707748,0.04771116,2938.3,2937.7,0.3]
[1644635707950,0.00830791,2937.9,2936.8,4.3323]
[1644635708149,0.00830791,2937.9,2937.3,0.489]
[1644635708795,0.1711,2938.2,2937.1,0.02197217]
[1644635708796,0.1701,2937.8,2937.1,0.02197217]
[1644635708992,1.87526913,2937.8,2937.1,0.02197217]
[1644635709190,1.13325731,2937.5,2937.1,0.02197217]
[1644635709392,0.1701,2937.4,2937.1,0.02197217]
[1644635710391,0.1784084,2937.4,2936.9,0.00335552]